fUSD/lending_fUSD_20260305
["ID","MTS","AMOUNT","RATE_DAILY","PERIOD"]
[407744517,1772733041037,-41981.57175038,0.00019535,2]
[407744518,1772733041046,-250.0,0.00019551,2]
[407744519,1772733041056,-300.0,0.000196,7]
[407744520,1772733041066,-300.0,0.000197,7]
[407744521,1772733041075,-165.25,0.0001976,2]
[407744522,1772733041084,-500.0,0.000198,7]
[407744523,1772733041096,-609.73051546,0.000198,2]
[407744524,1772733041104,-587.0,0.00019812,2]
[407744525,1772733041114,-5800.0,0.00019841,2]
[407744526,1772733041124,-5800.0,0.00019849,2]
[407744527,1772733041133,-5800.0,0.00019858,2]
[407744528,1772733041142,-25000.0,0.00019865,3]
[407744529,1772733041154,-5800.0,0.00019866,2]
[407744530,1772733041164,-25000.0,0.00019874,3]
[407744531,1772733041174,-5800.0,0.00019875,2]
[407744532,1772733041183,-25000.0,0.00019882,3]
[407744533,1772733041193,-5800.0,0.00019883,2]
[407744534,1772733041204,-500.0,0.00019891,2]
[407744535,1772733041213,-25000.0,0.00019891,3]
[407744536,1772733041223,-25000.0,0.00019891,3]
[407744537,1772733041511,-25000.0,0.00019891,3]
[407744538,1772733041520,-5800.0,0.00019892,2]
[407744539,1772733041530,-151.0,0.00019897,2]
[407744540,1772733041540,-2000.0,0.000199,2]
[407744541,1772733041550,-25000.0,0.000199,3]
[407744542,1772733041559,-5800.0,0.000199,2]
[407744543,1772733041570,-25000.0,0.000199,3]
[407744544,1772733041580,-799.26296589,0.000199,2]
[407744545,1772733041590,-13338.10783678,0.000199,2]
[407744546,1772733041600,-41981.57175038,0.000199,2]
[407744547,1772733041610,-219.89963754,0.000199,2]
[407744548,1772733041619,-3092.74299684,0.000199,2]
[407744549,1772733041629,-25000.0,0.000199,3]
[407744550,1772733041639,-155.0,0.00019974,2]
[407744551,1772733041648,-500.0,0.00019974,2]
[407744552,1772733041658,-500.0,0.00019974,2]
[407744553,1772733041668,-5181.7246538,0.00019975,2]
[407744554,1772733041677,-7164.3870452,0.00019975,2]
[407744555,1772733041687,-572036.2701276,0.00019975,2]
[407744556,1772733041696,-151.0,0.00019975,2]
[407744557,1772733041705,-151.0,0.00019975,2]
[407744558,1772733041714,-151.0,0.00019975,2]
[407744559,1772733041723,-151.0,0.00019975,2]
[407744560,1772733041733,-151.0,0.00019975,2]
[407744561,1772733041742,-151.0,0.00019975,2]
[407744562,1772733041751,-200.123664,0.00019975,2]
[407744563,1772733041760,-188.71429,0.00019975,2]
[407744564,1772733041769,-151.0,0.00019975,2]
[407744565,1772733041778,-151.0,0.00019975,2]
[407744566,1772733041788,-2313.72831283,0.00019975,3]
[407744567,1772733041797,-305.13860211,0.00019975,5]
[407744568,1772733041806,-119251.28442988,0.0001998,2]
[407744569,1772733041816,-478226.27648614,0.0001998,2]
[407744570,1772733041850,-274989.13900735,0.0001998,2]
[407744571,1772733041861,-151.0,0.0001998,2]
[407744572,1772733041870,-151.0,0.0001998,2]
[407744573,1772733041880,-151.0,0.0001998,2]
[407744574,1772733041889,-151.0,0.0001998,2]
[407744575,1772733041899,-746.30744808,0.0001999,2]
[407744576,1772733041909,-746.30744808,0.0001999,2]
[407744577,1772733041919,-1008.35756594,0.00019999,5]
[407744578,1772733041929,-1008.35756595,0.00019999,5]
[407744579,1772733041939,-500.0,0.00019999,2]
[407744580,1772733041948,-500.0,0.00019999,2]
[407744581,1772733041958,-500.0,0.00019999,2]
[407744582,1772733041968,-500.0,0.00019999,2]
[407744583,1772733041978,-255.23404753,0.00019999,2]
[407744584,1772733041987,-3038740.21662918,0.0002,2]
[407744615,1772733043365,-767.0,0.0002,2]
[407744616,1772733044070,-349.9355376,0.0001988,2]
[407744617,1772733044081,-5941.73831314,0.0002,2]
[407744618,1772733044092,-4882.40025021,0.0002,2]
[407744622,1772733045999,-1004.03244934,0.000196,2]
[407744623,1772733046009,-151.0,0.000199,2]
[407744624,1772733046017,-151.0,0.00019975,2]
[407744625,1772733046027,-13293.67063087,0.0002,2]
[407744626,1772733046038,-500.0,0.0002,2]
[407744627,1772733046059,-359.74802138,0.0002,2]
[407744628,1772733046085,-151.0,0.0001998,2]
[407744629,1772733046094,-7619.54956248,0.0002,2]
[407744630,1772733094086,522.0,0.00014,2]
[407744631,1772733096871,266.87,7.919e-05,2]
[407744632,1772733097099,266.87,8.336e-05,2]
[407744633,1772733097300,266.87,8.753e-05,2]
[407744634,1772733097516,266.87,9.17e-05,2]
[407744635,1772733097735,266.87,9.586e-05,2]
[407744636,1772733097952,266.87,0.00010003,2]
[407744637,1772733098218,266.87,0.0001042,2]
[407744638,1772733098519,266.87,0.00010837,2]
[407744639,1772733099541,266.87,0.00011253,2]
[407744640,1772733099770,266.87,0.0001167,2]
[407744641,1772733099996,266.87,0.00012087,2]
[407744642,1772733100748,266.87,0.00012504,2]
[407744643,1772733100801,266.87,0.00012921,2]
[407744644,1772733101016,266.87,0.00013337,2]
[407744645,1772733101300,266.87,0.00013754,2]
[407744646,1772733101553,266.87,0.00014171,2]
[407744647,1772733101774,266.87,0.00014588,2]
[407744648,1772733102006,266.87,0.00015005,2]
[407744649,1772733102349,266.87,0.00015421,2]
[407744650,1772733102598,266.87,0.00015838,2]
[407744651,1772733135705,708.0,0.00012,2]
[407744652,1772733140127,700.0,0.00012,2]
[407744653,1772733146817,500.0,0.00012,2]
[407744654,1772733221889,22614.3,0.00015838,2]
[407744655,1772733258582,200.0,0.00015838,2]
[407744657,1772733585854,3240.0,0.00015838,2]
[407744658,1772733652448,5000.00827846,0.000162,5]
[407744659,1772733667025,250.0,0.00015,2]
[407744660,1772733747185,-233.0,0.00016499,2]
[407744661,1772733747207,-1200.0,0.00016499,2]
[407744662,1772733747229,-300.0,0.00016499,2]
[407744663,1772733747250,-37050.44744667,0.000165,2]
[407744664,1772733747270,-2706.15012227,0.000165,2]
[407744665,1772733747290,-603.56,0.00016502,2]
[407744666,1772733747309,-603.56,0.00016502,2]
[407744667,1772733747328,-603.56,0.00016502,2]
[407744668,1772733747346,-603.56,0.00016502,2]
[407744669,1772733747364,-603.56,0.00016502,2]
[407744670,1772733747383,-151.0,0.00016509,2]
[407744671,1772733747403,-550.0,0.0001651,2]
[407744672,1772733747424,-244.88431677,0.00016511,2]
[407744673,1772733747443,-1036.32016175,0.00016511,5]
[407744674,1772733747462,-244.9,0.00016511,2]
[407744675,1772733747481,-500.0,0.00016511,2]
[407744676,1772733747501,-500.0,0.00016511,2]
[407744677,1772733747520,-500.0,0.00016511,2]
[407744678,1772733747539,-500.0,0.00016511,2]
[407744679,1772733747558,-515.39068237,0.00016511,2]
[407744680,1772733747584,-500.0,0.00016511,2]
[407744681,1772733747607,-349.09093662,0.00016511,2]
[407744682,1772733747628,-500.0,0.00016511,2]
[407744683,1772733747653,-500.0,0.00016511,2]
[407744684,1772733747679,-500.0,0.00016511,2]
[407744685,1772733747702,-500.0,0.00016511,2]
[407744686,1772733747725,-500.0,0.00016511,2]
[407744687,1772733747750,-500.0,0.00016511,2]
[407744688,1772733747774,-500.0,0.00016511,2]
[407744689,1772733747798,-500.0,0.00016511,2]
[407744690,1772733747820,-500.0,0.00016511,2]
[407744691,1772733747844,-500.0,0.00016511,2]
[407744692,1772733747866,-500.0,0.00016511,2]
[407744693,1772733747890,-500.0,0.00016511,2]
[407744694,1772733747914,-500.0,0.00016511,2]
[407744695,1772733747937,-500.0,0.00016511,2]
[407744696,1772733747960,-500.0,0.00016511,2]
[407744697,1772733747983,-500.0,0.00016511,2]
[407744698,1772733748005,-500.0,0.00016511,2]
[407744699,1772733748028,-500.0,0.00016511,2]
[407744700,1772733748052,-500.0,0.00016511,2]
[407744701,1772733748074,-500.0,0.00016511,2]
[407744702,1772733748096,-500.0,0.00016511,2]
[407744703,1772733748119,-500.0,0.00016511,2]
[407744704,1772733748142,-500.0,0.00016511,2]
[407744705,1772733748165,-455.91161179,0.00016511,2]
[407744706,1772733748188,-500.0,0.00016511,2]
[407744707,1772733748211,-500.0,0.00016511,2]
[407744708,1772733748234,-500.0,0.00016511,2]
[407744709,1772733748257,-500.0,0.00016511,2]
[407744710,1772733748280,-500.0,0.00016511,2]
[407744711,1772733748302,-500.0,0.00016511,2]
[407744712,1772733748324,-500.0,0.00016511,2]
[407744713,1772733748347,-500.0,0.00016511,2]
[407744714,1772733748370,-500.0,0.00016511,2]
[407744715,1772733748393,-500.0,0.00016511,2]
[407744716,1772733748416,-500.0,0.00016511,2]
[407744717,1772733748440,-500.0,0.00016511,2]
[407744718,1772733748463,-500.0,0.00016511,2]
[407744719,1772733748486,-500.0,0.00016511,2]
[407744720,1772733748509,-500.0,0.00016511,2]
[407744721,1772733748531,-500.0,0.00016511,2]
[407744722,1772733748554,-500.0,0.00016511,2]
[407744723,1772733748579,-500.0,0.00016511,2]
[407744724,1772733748602,-500.0,0.00016511,2]
[407744725,1772733748625,-500.0,0.00016511,2]
[407744726,1772733748649,-500.0,0.00016511,2]
[407744727,1772733748672,-500.0,0.00016511,2]
[407744728,1772733748696,-500.0,0.00016511,2]
[407744729,1772733749153,-500.0,0.00016511,2]
[407744730,1772733749200,-500.0,0.00016511,2]
[407744731,1772733749224,-500.0,0.00016511,2]
[407744732,1772733749247,-500.0,0.00016511,2]
[407744733,1772733749270,-500.0,0.00016511,2]
[407744734,1772733749291,-500.0,0.00016511,2]
[407744735,1772733749314,-500.0,0.00016511,2]
[407744736,1772733749337,-500.0,0.00016511,2]
[407744737,1772733749361,-500.0,0.00016511,2]
[407744738,1772733749389,-500.0,0.00016511,2]
[407744739,1772733749414,-500.0,0.00016511,2]
[407744740,1772733749438,-500.0,0.00016511,2]
[407744741,1772733749467,-500.0,0.00016511,2]
[407744742,1772733749490,-500.0,0.00016511,2]
[407744743,1772733749512,-500.0,0.00016511,2]
[407744744,1772733749535,-500.0,0.00016511,2]
[407744745,1772733749556,-351.72737183,0.00016511,2]
[407744746,1772733749582,-500.0,0.00016511,2]
[407744747,1772733749607,-500.0,0.00016511,2]
[407744748,1772733749630,-500.0,0.00016511,2]
[407744749,1772733749661,-500.0,0.00016511,2]
[407744750,1772733749685,-500.0,0.00016511,2]
[407744751,1772733749708,-500.0,0.00016511,2]
[407744752,1772733749732,-500.0,0.00016511,2]
[407744753,1772733749756,-500.0,0.00016511,2]
[407744754,1772733749779,-500.0,0.00016511,2]
[407744755,1772733749801,-500.0,0.00016511,2]
[407744756,1772733749825,-349.09093662,0.00016511,2]
[407744757,1772733749849,-500.0,0.00016511,2]
[407744758,1772733749871,-349.09093662,0.00016511,2]
[407744759,1772733749897,-500.0,0.00016511,2]
[407744760,1772733749920,-349.09093662,0.00016511,2]
[407744761,1772733749944,-500.0,0.00016511,2]
[407744762,1772733749965,-349.09093662,0.00016511,2]
[407744763,1772733749987,-500.0,0.00016511,2]
[407744764,1772733750009,-349.09093662,0.00016511,2]
[407744765,1772733750030,-349.09093662,0.00016511,2]
[407744766,1772733750052,-500.0,0.00016511,2]
[407744767,1772733750074,-500.0,0.00016511,2]
[407744768,1772733750096,-349.09093662,0.00016511,2]
[407744769,1772733750123,-849.09093662,0.00016511,2]
[407744770,1772733750145,-400.0,0.00016512,5]
[407744771,1772733750168,-272600.64985697,0.00016512,2]
[407744780,1772734035854,500.0,0.00012,2]
[407744781,1772734035902,500.0,0.00012,2]
[407744782,1772734036232,500.0,0.00012,2]
[407744783,1772734036346,500.0,0.00011291,2]
[407744784,1772734038451,500.0,0.00012,2]
[407744785,1772734038951,743.43859942,0.00011291,2]
[407744786,1772734040810,500.0,0.00012,2]
[407744787,1772734041329,500.0,0.00012,2]
[407744788,1772734042198,500.0,0.00011291,2]
[407744789,1772734042943,500.0,0.00011291,2]
[407744790,1772734046503,522.48116495,0.00012,2]
[407744791,1772734056092,500.0,0.00012,2]
[407744800,1772734231800,-300.0,0.00016411,2]
[407744801,1772734231810,-1200.0,0.00016411,2]
[407744802,1772734231820,-288.0,0.00016411,2]
[407744803,1772734231830,-212.0,0.00016412,2]
[407744804,1772734231843,-576.30178637,0.00016412,2]
[407744805,1772734231854,-501.52740981,0.00016412,2]
[407744806,1772734231865,-1725.0,0.00016412,2]
[407744807,1772734231877,-351.935,0.00016412,2]
[407744808,1772734231888,-484.55790331,0.00016412,2]
[407744809,1772734231900,-2255.84924183,0.00016412,2]
[407744810,1772734231911,-866.46,0.00016412,2]
[407744811,1772734231923,-4790.17667735,0.00016412,2]
[407744812,1772734231932,-5000.0,0.00016412,2]
[407744813,1772734231942,-2367.88135696,0.00016457,2]
[407744814,1772734231951,-400.0,0.00016471,5]
[407744815,1772734231960,-286.0,0.00016499,2]
[407744816,1772734231970,-37989.8295935,0.00016502,2]
[407744817,1772734231979,-304.70394226,0.00016502,2]
[407744818,1772734231988,-160.55109637,0.00016502,2]
[407744819,1772734231997,-151.0,0.00016502,2]
[407744820,1772734232006,-151.0,0.00016502,2]
[407744821,1772734232015,-151.0,0.00016502,2]
[407744823,1772734232024,-151.0,0.00016502,2]
[407744825,1772734232033,-151.0,0.00016502,2]
[407744827,1772734232042,-200.0,0.00016502,2]
[407744829,1772734232051,-151.0,0.00016502,2]
[407744831,1772734232060,-500.0,0.00016502,2]
[407744833,1772734232069,-151.0,0.00016502,2]
[407744835,1772734232079,-151.0,0.00016502,2]
[407744837,1772734232088,-258.20521433,0.00016502,2]
[407744838,1772734232097,-151.0,0.00016509,2]
[407744839,1772734232107,-151.0,0.00016509,2]
[407744840,1772734232117,-1041.30749208,0.00016511,5]
[407744841,1772734232127,-500.0,0.00016511,2]
[407744842,1772734232137,-500.0,0.00016511,2]
[407744843,1772734232147,-500.0,0.00016511,2]
[407744844,1772734232157,-500.0,0.00016511,2]
[407744845,1772734232166,-500.0,0.00016511,2]
[407744846,1772734232175,-619.14649771,0.00016511,2]
[407744847,1772734232184,-500.0,0.00016511,2]
[407744848,1772734232193,-500.0,0.00016511,2]
[407744849,1772734232203,-500.0,0.00016511,2]
[407744850,1772734232212,-500.0,0.00016511,2]
[407744851,1772734232222,-500.0,0.00016511,2]
[407744852,1772734232232,-500.0,0.00016511,2]
[407744853,1772734232242,-500.0,0.00016511,2]
[407744854,1772734232252,-500.0,0.00016511,2]
[407744855,1772734232260,-500.0,0.00016511,2]
[407744856,1772734232270,-500.0,0.00016511,2]
[407744857,1772734232279,-500.0,0.00016511,2]
[407744858,1772734232288,-622.8371465,0.00016511,2]
[407744859,1772734232298,-500.0,0.00016511,2]
[407744860,1772734232307,-500.0,0.00016511,2]
[407744861,1772734232317,-500.0,0.00016511,2]
[407744862,1772734232326,-500.0,0.00016511,2]
[407744863,1772734232336,-500.0,0.00016511,2]
[407744864,1772734232346,-284.4223026,0.00016511,2]
[407744865,1772734232355,-500.0,0.00016511,2]
[407744866,1772734232364,-500.0,0.00016511,2]
[407744867,1772734232372,-376.62200714,0.00016511,2]
[407744868,1772734232380,-500.0,0.00016511,2]
[407744869,1772734232390,-184.69983179,0.00016511,2]
[407744870,1772734232399,-500.0,0.00016511,2]
[407744871,1772734232408,-1955.2846563,0.00016512,2]
[407744872,1772734232417,-42988.17148605,0.00016512,2]
[407744873,1772734232429,-17954.44157222,0.00016512,2]
[407744874,1772734232439,-48261.63601419,0.00016512,2]
[407744875,1772734232450,-4519.81641771,0.00016512,2]
[407744876,1772734232462,-3532.8,0.00016512,2]
[407744877,1772734232473,-723.749995,0.00016512,2]
[407744878,1772734232488,-460.51348595,0.00016512,2]
[407744879,1772734232498,-831.64957871,0.00016512,2]
[407744880,1772734232508,-2772.47495914,0.00016512,2]
[407744881,1772734232519,-601.01912873,0.00016512,2]
[407744882,1772734232528,-151.0,0.00016512,2]
[407744883,1772734232537,-151.0,0.00016512,2]
[407744884,1772734232546,-992.77013602,0.00016512,2]
[407744895,1772734237900,-5486.62137138,0.00016512,2]
[407744900,1772734238164,-987.63357351,0.00016512,2]
[407744901,1772734238176,-1597.0505523,0.00016512,2]
[407744902,1772734238187,-539.79318427,0.00016512,2]
[407744918,1772734240263,-961.69544861,0.00016512,2]
[407744919,1772734240424,-25303.11905375,0.00016512,2]
[407744920,1772734240438,-1111.07979988,0.00016512,2]
[407744921,1772734240449,-2088036.1043876,0.00016512,2]
[407744928,1772734242902,-52915.75856769,0.00016512,2]
[407744929,1772734243009,-424.394407,0.00016512,2]
[407744930,1772734243063,-1620.32896102,0.00016512,2]
[407744931,1772734243073,-151.0,0.00016557,2]
[407744932,1772734243083,-685.0825422,0.000166,2]
[407744933,1772734243093,-400.0,0.000166,6]
[407744934,1772734243104,-151.0,0.00016612,2]
[407744935,1772734243114,-151.0,0.00016667,2]
[407744936,1772734243124,-519.52588465,0.000167,6]
[407744951,1772734245798,-6991.58768065,0.000164,2]
[407744952,1772734245810,-25802.25731935,0.000164,2]
[407744953,1772734245819,-151.0,0.00016667,2]
[407744954,1772734245829,-380.47411535,0.000167,6]
[407744955,1772734245839,-293.6087821,0.00016722,2]
[407744956,1772734245848,-257.0,0.00016761,2]
[407744957,1772734245859,-1302.0,0.00016765,2]
[407744958,1772734245869,-183.93,0.0001679,2]
[407744959,1772734245878,-584.0,0.00016799,2]
[407744960,1772734245887,-11763.80801864,0.000168,2]
[407744961,1772734245896,-1300.0,0.000168,6]
[407744962,1772734245906,-1800.0,0.000169,6]
[407744963,1772734245915,-216.11417873,0.000169,2]
[407744964,1772734245924,-1266.87895225,0.000169,2]
[407744965,1772734245934,-2367.88135695,0.00016949,2]
[407744966,1772734245943,-166.66,0.00016957,2]
[407744967,1772734245952,-1500.0,0.00017,2]
[407744968,1772734245961,-1500.0,0.00017,2]
[407744969,1772734245970,-2098.457839,0.00017,2]
[407744970,1772734245981,-300.0,0.00017,2]
[407744971,1772734245991,-1436.70614573,0.00017,2]
[407744972,1772734246000,-293296.41759583,0.00017,2]
[407744973,1772734246014,-276488.27899518,0.00017,2]
[407744974,1772734246029,-2130.02978164,0.00017,2]
[407744975,1772734246044,-411.93999999,0.00017,2]
[407744980,1772734247014,-985.02321125,0.00017,2]
[407744984,1772734335522,500.0,0.00012,2]
[407744985,1772734335897,500.0,0.00012,2]
[407744986,1772734336006,500.0,0.00012,2]
[407744987,1772734336355,500.0,0.00012,2]
[407744988,1772734336499,762.0917335,0.00011291,2]
[407744989,1772734336566,500.0,0.00012,2]
[407744990,1772734336891,532.01062926,0.00011291,2]
[407744991,1772734337054,900.23919341,0.00011291,2]
[407744992,1772734340030,739.95673947,0.00012,2]
[407744993,1772734341174,500.0,0.00012,2]
[407744994,1772734341672,500.0,0.00012,2]
[407744995,1772734342156,710.68871512,0.00011291,2]
[407744996,1772734343586,500.0,0.00012,2]
[407744997,1772734343685,506.8082533,0.00012,2]
[407744998,1772734345980,500.0,0.00012,2]
[407745000,1772734538816,5532.0,0.000126,5]
[407745001,1772734539034,3404.0,0.000121,3]
[407745007,1772734635343,500.0,0.00012,2]
[407745008,1772734635845,867.55422505,0.00011291,2]
[407745009,1772734635878,500.0,0.00012,2]
[407745010,1772734636387,500.0,0.00011291,2]
[407745012,1772734892399,196.30944378,0.000162,2]
[407745013,1772734929341,98309.0457,0.00016202,2]
[407745016,1772734984345,3485.5671,0.00016202,2]
[407745017,1772735044131,2312.18,0.00016036,2]
[407745018,1772735066952,14025.9229,0.00016202,2]
[407745019,1772735140338,9441.50359098,0.00016219,2]
[407745020,1772735162527,1604.07,0.00015828,2]
[407745021,1772735199411,1049.03,0.00013064,2]
[407745022,1772735273684,1767.53,0.00015794,2]
[407745023,1772735367414,-287.0,0.000163,2]
[407745024,1772735367436,-463.45399642,0.000163,2]
[407745025,1772735367459,-300.0,0.00016301,2]
[407745026,1772735367481,-1200.0,0.00016301,2]
[407745027,1772735367502,-550.0,0.00016301,2]
[407745028,1772735367527,-2746.13069758,0.00016302,2]
[407745029,1772735380490,4134.7725,0.00016202,2]
[407745035,1772735419357,14245.13,0.00015779,2]
[407745037,1772735430142,92644.293,0.00016202,2]
[407745051,1772735432117,-675.0,0.00016301,2]
[407745052,1772735432130,-316.11449079,0.00016301,2]
[407745053,1772735432142,-208.88550921,0.00016301,2]
[407745054,1772735432151,-550.0,0.00016301,2]
[407745055,1772735432162,-300.0,0.00016301,2]
[407745056,1772735432171,-16.54449079,0.00016301,2]
[407745057,1772735432184,-1574.04678007,0.00016301,2]
[407745058,1772735432194,-300.0,0.00016302,2]
[407745059,1772735432203,-153401.05260242,0.00016302,2]
[407745060,1772735432212,-2500.0,0.00016302,2]
[407745061,1772735432223,-243.55922517,0.00016363,2]
[407745062,1772735432233,-326.54,0.00016392,2]
[407745063,1772735432242,-171.83526513,0.000164,2]
[407745064,1772735432252,-171.83526512,0.000164,2]
[407745065,1772735432262,-171.83526512,0.000164,2]
[407745066,1772735432272,-400.0,0.00016412,5]
[407745067,1772735432282,-1226.29,0.00016452,2]
[407745069,1772735432291,-1946.71671724,0.00016514,2]
[407745070,1772735432301,-2000.0,0.00016558,2]
[407745071,1772735432310,-747.05,0.00016558,2]
[407745072,1772735432320,-160.0,0.00016558,2]
[407745073,1772735432330,-500.0,0.00016558,2]
[407745074,1772735432339,-4000.0,0.00016558,2]
[407745075,1772735432348,-735.93,0.00016558,2]
[407745076,1772735432359,-173.3,0.00016558,2]
[407745077,1772735432368,-294.19,0.00016558,2]
[407745078,1772735432378,-882.405446,0.00016563,2]
[407745079,1772735432386,-1767.53,0.00016584,2]
[407745080,1772735432396,-341.31,0.00016604,2]
[407745081,1772735432405,-341.31,0.00016604,2]
[407745082,1772735432414,-341.31,0.00016604,2]
[407745083,1772735432423,-341.31,0.00016604,2]
[407745084,1772735432434,-341.31,0.00016604,2]
[407745085,1772735432445,-500.0,0.00016604,2]
[407745086,1772735432455,-500.0,0.00016604,2]
[407745087,1772735432464,-500.0,0.00016604,2]
[407745088,1772735432475,-151.0,0.00016604,2]
[407745089,1772735432485,-500.0,0.00016604,2]
[407745090,1772735432495,-151.0,0.00016604,2]
[407745091,1772735432506,-500.0,0.00016604,2]
[407745092,1772735432516,-500.0,0.00016604,2]
[407745093,1772735432525,-151.0,0.00016604,2]
[407745094,1772735432534,-500.0,0.00016604,2]
[407745095,1772735432543,-151.0,0.00016604,2]
[407745096,1772735432552,-500.0,0.00016604,2]
[407745097,1772735432561,-151.0,0.00016604,2]
[407745098,1772735432574,-500.0,0.00016604,2]
[407745099,1772735432584,-151.0,0.00016604,2]
[407745100,1772735432594,-151.0,0.00016604,2]
[407745101,1772735432603,-151.0,0.00016604,2]
[407745102,1772735432613,-151.0,0.00016604,2]
[407745103,1772735432622,-500.0,0.00016604,2]
[407745104,1772735432631,-151.0,0.00016604,2]
[407745105,1772735432641,-500.0,0.00016604,2]
[407745106,1772735432651,-151.0,0.00016604,2]
[407745107,1772735432660,-500.0,0.00016604,2]
[407745108,1772735432669,-500.0,0.00016604,2]
[407745109,1772735432678,-500.0,0.00016604,2]
[407745110,1772735432688,-500.0,0.00016604,2]
[407745111,1772735432698,-200.0,0.00016604,2]
[407745112,1772735432707,-500.0,0.00016604,2]
[407745113,1772735432716,-500.0,0.00016604,2]
[407745114,1772735432726,-500.0,0.00016604,2]
[407745115,1772735432735,-151.0,0.00016604,2]
[407745116,1772735432744,-500.0,0.00016604,2]
[407745117,1772735432755,-500.0,0.00016613,2]
[407745118,1772735432764,-500.0,0.00016613,2]
[407745119,1772735432773,-500.0,0.00016613,2]
[407745120,1772735432783,-500.0,0.00016613,2]
[407745121,1772735432793,-500.0,0.00016613,2]
[407745122,1772735432802,-500.0,0.00016613,2]
[407745123,1772735432812,-500.0,0.00016613,2]
[407745124,1772735432823,-500.0,0.00016613,2]
[407745125,1772735432832,-500.0,0.00016613,2]
[407745126,1772735432842,-500.0,0.00016613,2]
[407745127,1772735432852,-500.0,0.00016613,2]
[407745128,1772735432861,-500.0,0.00016613,2]
[407745129,1772735432871,-500.0,0.00016613,2]
[407745130,1772735432880,-500.0,0.00016613,2]
[407745131,1772735432890,-500.0,0.00016613,2]
[407745132,1772735432900,-500.0,0.00016613,2]
[407745133,1772735432909,-500.0,0.00016613,2]
[407745134,1772735432919,-500.0,0.00016613,2]
[407745135,1772735432928,-500.0,0.00016613,2]
[407745136,1772735432939,-500.0,0.00016613,2]
[407745137,1772735432948,-619.82326052,0.00016613,2]
[407745138,1772735432957,-500.0,0.00016613,2]
[407745139,1772735432968,-500.0,0.00016613,2]
[407745140,1772735432979,-500.0,0.00016613,2]
[407745141,1772735432990,-500.0,0.00016613,2]
[407745142,1772735433000,-500.0,0.00016613,2]
[407745143,1772735433010,-500.0,0.00016613,2]
[407745144,1772735433019,-500.0,0.00016613,2]
[407745145,1772735433030,-500.0,0.00016613,2]
[407745146,1772735433041,-500.0,0.00016613,2]
[407745147,1772735433056,-199.09561182,0.00016613,2]
[407745148,1772735433066,-500.0,0.00016613,2]
[407745149,1772735433076,-500.0,0.00016613,2]
[407745150,1772735433086,-500.0,0.00016613,2]
[407745151,1772735433096,-433.4025484,0.00016613,2]
[407745152,1772735433106,-500.0,0.00016613,2]
[407745153,1772735433119,-500.0,0.00016613,2]
[407745154,1772735433129,-163.635405,0.00016613,2]
[407745155,1772735433139,-500.0,0.00016613,2]
[407745156,1772735433149,-274370.88313378,0.00016614,2]
[407745157,1772735433161,-21362.3065919,0.00016614,2]
[407745158,1772735433184,-951.09995283,0.00016614,2]
[407745159,1772735433195,-482.5225775,0.00016614,2]